[Event "Championnat du monde jeunes U12"]
[Date "2024.11.17"]
[White "Kleschevnikov, Arseny"]
[Black "Obidjonov, Oriyat"]
[WhiteElo "1893"]
[BlackElo "2074"]
[Round "3.11"]
[Result "1/2-1/2"]
[TimeControl "5400+30"]

1. d4 {[%clk 1:30:58]} 1... Nf6 {[%clk 1:30:51]} 2. c4 {[%clk 1:31:20]} 2... e6
{[%clk 1:31:19]} 3. Nc3 {[%clk 1:31:44]} 3... Bb4 {[%clk 1:31:43]} 4. e3 {[%clk
1:32:10]} 4... c5 {[%clk 1:32:08]} 5. Ne2 {[%clk 1:31:44]} 5... d5 {[%clk
1:32:12]} 6. a3 {[%clk 1:32:07]} 6... Bxc3+ {[%clk 1:32:30]} 7. Nxc3 {[%clk
1:32:34]} 7... cxd4 {[%clk 1:32:55]} 8. exd4 {[%clk 1:32:59]} 8... dxc4 {[%clk
1:33:21]} 9. Bxc4 {[%clk 1:31:11]} 9... Nc6 {[%clk 1:32:34]} 10. Be3 {[%clk
1:26:52]} 10... O-O {[%clk 1:31:33]} 11. O-O {[%clk 1:23:06]} 11... b6 {[%clk
1:29:42]} 12. Ba2 {[%clk 1:09:01]} 12... h6 {[%clk 1:20:51]} 13. Qd3 {[%clk
0:47:16]} 13... Ne7 {[%clk 1:19:07]} 14. Rad1 {[%clk 0:45:10]} 14... Bb7 {[%clk
1:17:55]} 15. Bf4 {[%clk 0:42:38]} 15... Nfd5 {[%clk 1:16:00]} 16. Nxd5 {[%clk
0:37:19]} 16... Bxd5 {[%clk 1:12:45]} 17. Bb1 {[%clk 0:37:41]} 17... Ng6 {[%clk
1:12:52]} 18. Bg3 {[%clk 0:36:42]} 18... Bb7 {[%clk 1:09:59]} 19. Rfe1 {[%clk
0:32:59]} 19... Qd5 {[%clk 1:09:58]} 20. f3 {[%clk 0:33:11]} 20... Rfd8 {[%clk
1:09:46]} 21. Qd2 {[%clk 0:24:52]} 21... Nf8 {[%clk 1:08:10]} 22. Re5 {[%clk
0:23:20]} 22... Qc4 {[%clk 1:06:34]} 23. Bf4 {[%clk 0:19:18]} 23... Rd5 {[%clk
0:54:39]} 24. Rxd5 {[%clk 0:09:09]} 24... Qxd5 {[%clk 0:54:58]} 25. Qf2 {[%clk
0:05:19]} 25... Qh5 {[%clk 0:50:23]} 26. Qg3 {[%clk 0:04:21]} 26... Rd8 {[%clk
0:50:34]} 27. h4 {[%clk 0:02:16]} 27... Kh8 {[%clk 0:48:14]} 28. Be5 f6 {[%clk
0:48:31]} 29. Bd6 {[%clk 0:01:32]} 29... Qd5 {[%clk 0:48:36]} 30. Be7 {[%clk
0:01:17]} 30... Re8 {[%clk 0:48:52]} 31. Bxf8 {[%clk 0:01:08]} 31... Rxf8 {[%clk
0:49:20]} 32. Qg6 {[%clk 0:01:03]} 32... f5 {[%clk 0:49:48]} 33. Qg3 {[%clk
0:01:10]} 33... Qb3 {[%clk 0:49:58]} 34. Rd2 {[%clk 0:01:06]} 34... Rc8 {[%clk
0:48:15]} 35. Bd3 {[%clk 0:01:10]} 35... Bd5 {[%clk 0:42:09]} 36. Kh2 {[%clk
0:01:26]} 36... Qa2 {[%clk 0:41:07]} 37. Qe5 {[%clk 0:01:19]} 37... Qa1 {[%clk
0:40:51]} 38. Rc2 {[%clk 0:00:43]} 38... Rxc2 {[%clk 0:37:40]} 39. Bxc2 {[%clk
0:01:10]} 39... Qa2 {[%clk 0:31:26]} 40. h5 Qc4 41. Qb8+ Kh7 42. Qe8 1/2-1/2

[Variant "Standard"]
[Site "Europe Echecs"]

[Event "Championnat du monde jeunes U12"]
[Date "2024.11.17"]
[White "Nguyen, Khoi"]
[Black "Miransh Vyas"]
[WhiteElo "1994"]
[BlackElo "1705"]
[Round "3.38"]
[Result "0-1"]
[TimeControl "5400+30"]

1. d4 {[%clk 1:30:58]} 1... Nf6 {[%clk 1:30:15]} 2. c4 {[%clk 1:31:15]} 2... e6
{[%clk 1:30:39]} 3. g3 {[%clk 1:31:39]} 3... d5 {[%clk 1:30:59]} 4. Bg2 {[%clk
1:32:00]} 4... Bb4+ {[%clk 1:30:38]} 5. Nd2 {[%clk 1:31:13]} 5... O-O {[%clk
1:30:25]} 6. Nf3 {[%clk 1:31:37]} 6... dxc4 {[%clk 1:28:06]} 7. Qc2 {[%clk
1:30:07]} 7... a5 {[%clk 1:25:58]} 8. Qxc4 {[%clk 1:24:42]} 8... b6 {[%clk
1:23:38]} 9. a3 {[%clk 1:24:49]} 9... Ba6 {[%clk 1:20:33]} 10. Qc2 {[%clk
1:25:03]} 10... Be7 {[%clk 1:20:08]} 11. Nc4 {[%clk 1:18:15]} 11... Bb7 {[%clk
1:04:01]} 12. O-O {[%clk 1:16:15]} 12... Be4 {[%clk 0:50:07]} 13. Qd1 {[%clk
0:59:30]} 13... Nbd7 {[%clk 0:31:23]} 14. b3 {[%clk 0:57:27]} 14... Qc8 {[%clk
0:22:30]} 15. Bb2 {[%clk 0:53:54]} 15... Rd8 {[%clk 0:19:29]} 16. Ncd2 {[%clk
0:53:37]} 16... Bb7 {[%clk 0:18:33]} 17. Rc1 {[%clk 0:53:15]} 17... Qb8 {[%clk
0:17:26]} 18. Rc2 {[%clk 0:41:56]} 18... c5 {[%clk 0:12:47]} 19. Qa1 {[%clk
0:42:19]} 19... a4 {[%clk 0:10:15]} 20. dxc5 {[%clk 0:24:32]} 20... bxc5 {[%clk
0:09:01]} 21. bxa4 {[%clk 0:22:49]} 21... Rxa4 {[%clk 0:08:51]} 22. Nc4 {[%clk
0:18:00]} 22... Be4 {[%clk 0:08:05]} 23. Rcc1 {[%clk 0:18:13]} 23... Qb5 {[%clk
0:07:07]} 24. Nfd2 {[%clk 0:14:38]} 24... Bxg2 {[%clk 0:07:17]} 25. Kxg2 {[%clk
0:15:07]} 25... Rda8 {[%clk 0:06:48]} 26. Rfd1 {[%clk 0:15:02]} 26... Nb6 {[%clk
0:06:22]} 27. Nxb6 {[%clk 0:13:05]} 27... Qxb6 {[%clk 0:06:43]} 28. Nc4 {[%clk
0:13:13]} 28... Qb5 {[%clk 0:06:25]} 29. Qa2 {[%clk 0:13:29]} 29... R8a6 {[%clk
0:06:08]} 30. Be5 {[%clk 0:09:17]} 30... h5 {[%clk 0:04:04]} 31. Qb2 {[%clk
0:07:51]} 31... Qc6+ {[%clk 0:02:56]} 32. f3 {[%clk 0:07:37]} 32... Ra7 {[%clk
0:01:49]} 33. Rb1 {[%clk 0:05:59]} 33... Kh7 {[%clk 0:01:32]} 34. Qc2+ {[%clk
0:04:48]} 34... g6 {[%clk 0:01:17]} 35. Rb6 {[%clk 0:03:53]} 35... Rxc4 {[%clk
0:01:17]} 36. Qb2 {[%clk 0:03:56]} 36... Qa4 {[%clk 0:01:23]} 37. Bxf6 {[%clk
0:03:17]} 37... Bxf6 {[%clk 0:01:16]} 38. Qxf6 {[%clk 0:02:51]} 38... Qxd1
{[%clk 0:01:31]} 39. Rb8 {[%clk 0:02:53]} 39... Qxe2+ {[%clk 0:01:45]} 40. Kh3
{[%clk 0:03:14]} 40... Qf1# {[%clk 0:01:38]} 0-1

[Variant "Standard"]
[Site "Europe Echecs"]

[Event "Championnat du monde jeunes U12"]
[Date "2024.11.17"]
[White "Gao, Heye"]
[Black "Teo, Hong Kai Javier"]
[WhiteElo "1933"]
[BlackElo "1675"]
[Round "3.42"]
[Result "1-0"]
[TimeControl "5400+30"]

1. e4 {[%clk 1:30:50]} 1... e6 {[%clk 1:30:41]} 2. d4 {[%clk 1:30:40]} 2... d5
{[%clk 1:30:16]} 3. Nc3 {[%clk 1:30:11]} 3... Bb4 {[%clk 1:29:30]} 4. Ne2 {[%clk
1:30:04]} 4... dxe4 {[%clk 1:23:59]} 5. a3 {[%clk 1:28:43]} 5... Bxc3+ {[%clk
1:24:08]} 6. Nxc3 {[%clk 1:28:41]} 6... f5 {[%clk 1:23:53]} 7. Qh5+ {[%clk
1:27:46]} 7... g6 {[%clk 1:23:14]} 8. Qh3 {[%clk 1:27:24]} 8... Nc6 {[%clk
1:20:54]} 9. Bf4 {[%clk 1:21:13]} 9... Nge7 {[%clk 1:10:26]} 10. O-O-O {[%clk
1:17:28]} 10... Nd5 {[%clk 1:09:25]} 11. Bh6 {[%clk 1:16:22]} 11... Qe7 {[%clk
1:05:04]} 12. Bc4 {[%clk 1:15:08]} 12... Nxc3 {[%clk 0:59:51]} 13. Qxc3 {[%clk
1:15:06]} 13... Qf6 {[%clk 0:57:14]} 14. Qg3 {[%clk 1:06:30]} 14... e5 {[%clk
0:46:28]} 15. dxe5 {[%clk 1:04:41]} 15... Nxe5 {[%clk 0:45:32]} 16. Bg5 {[%clk
1:04:41]} 1-0

[Variant "Standard"]
[Site "Europe Echecs"]

[Event "Championnat du monde jeunes U12"]
[Date "2024.11.17"]
[White "Chen, Jun-Wei"]
[Black "Farzaleev, Daniyar"]
[WhiteElo "1907"]
[BlackElo "1622"]
[Round "3.49"]
[Result "0-1"]
[TimeControl "5400+30"]

1. e4 {[%clk 1:30:57]} 1... c5 {[%clk 1:30:54]} 2. Nf3 {[%clk 1:31:21]} 2... Nc6
{[%clk 1:31:20]} 3. Bb5 {[%clk 1:31:40]} 3... g6 {[%clk 1:31:45]} 4. Bxc6 {[%clk
1:31:56]} 4... dxc6 {[%clk 1:32:12]} 5. d3 {[%clk 1:32:02]} 5... Bg7 {[%clk
1:32:39]} 6. h3 {[%clk 1:32:12]} 6... Nf6 {[%clk 1:33:05]} 7. O-O {[%clk
1:31:05]} 7... O-O {[%clk 1:33:32]} 8. Qe2 {[%clk 1:29:35]} 8... Qc7 {[%clk
1:33:09]} 9. Nc3 {[%clk 1:28:51]} 9... b6 {[%clk 1:31:34]} 10. Be3 {[%clk
1:28:37]} 10... Ba6 {[%clk 1:30:38]} 11. a4 {[%clk 1:19:51]} 11... Rfd8 {[%clk
1:28:58]} 12. Rfd1 {[%clk 1:17:43]} 12... Nh5 {[%clk 1:28:01]} 13. g3 {[%clk
1:15:32]} 13... Bc8 {[%clk 1:23:17]} 14. Kg2 {[%clk 1:14:12]} 14... Qd7 {[%clk
1:22:19]} 15. g4 {[%clk 1:06:27]} 15... Nf6 {[%clk 1:22:07]} 16. Rh1 {[%clk
1:03:04]} 16... h5 {[%clk 1:17:21]} 17. g5 {[%clk 1:00:41]} 17... Ne8 {[%clk
1:17:40]} 18. Nh4 {[%clk 0:59:21]} 18... e5 {[%clk 1:14:29]} 19. a5 {[%clk
0:58:14]} 19... Nc7 {[%clk 1:12:41]} 20. Qf3 {[%clk 0:55:30]} 20... Ba6 {[%clk
1:11:18]} 21. b3 {[%clk 0:54:37]} 21... Ne6 {[%clk 1:11:34]} 22. axb6 {[%clk
0:46:56]} 22... axb6 {[%clk 1:11:58]} 23. Ne2 {[%clk 0:43:11]} 23... Qe7 {[%clk
1:10:05]} 24. Qg3 {[%clk 0:43:22]} 24... Nf4+ {[%clk 1:10:29]} 25. Nxf4 {[%clk
0:43:27]} 25... exf4 {[%clk 1:10:57]} 26. Bxf4 {[%clk 0:43:56]} 26... Bxa1
{[%clk 1:11:20]} 27. Rxa1 {[%clk 0:44:24]} 27... Bb7 {[%clk 1:11:24]} 28. Be5
{[%clk 0:43:40]} 28... Rxa1 {[%clk 1:09:55]} 29. Bxa1 {[%clk 0:44:08]} 29... Ra8
{[%clk 1:10:17]} 30. Bf6 {[%clk 0:44:04]} 30... Qe6 {[%clk 1:09:52]} 31. Qc7
{[%clk 0:42:59]} 31... Qc8 {[%clk 1:08:54]} 32. Qe7 {[%clk 0:42:37]} 32... Ba6
{[%clk 1:05:47]} 33. f4 {[%clk 0:41:45]} 33... Qb7 {[%clk 1:04:21]} 34. f5
{[%clk 0:38:47]} 34... Qxe7 {[%clk 1:03:35]} 35. Bxe7 {[%clk 0:39:16]} 35... Bc8
{[%clk 1:03:29]} 36. Kf3 {[%clk 0:38:01]} 36... Ra2 {[%clk 1:02:56]} 37. Kf4
{[%clk 0:33:12]} 37... Rxc2 {[%clk 1:02:47]} 38. Nf3 {[%clk 0:31:03]} 38... gxf5
{[%clk 1:00:37]} 39. exf5 {[%clk 0:31:29]} 39... Rf2 {[%clk 1:01:03]} 40. f6
{[%clk 0:30:11]} 40... Be6 {[%clk 0:56:31]} 41. Kg3 {[%clk 0:30:04]} 41... Re2
{[%clk 0:54:37]} 42. Kf4 {[%clk 0:29:31]} 42... Bxb3 {[%clk 0:53:49]} 43. Ne5
{[%clk 0:27:26]} 43... Be6 {[%clk 0:49:10]} 44. h4 {[%clk 0:25:21]} 44... Rh2
{[%clk 0:45:39]} 45. g6 {[%clk 0:20:42]} 45... fxg6 {[%clk 0:44:25]} 46. Nxg6
{[%clk 0:20:02]} 46... Bf7 {[%clk 0:44:44]} 47. Ne5 {[%clk 0:20:05]} 47... Rxh4+
{[%clk 0:45:00]} 48. Kg5 {[%clk 0:20:30]} 48... Rd4 {[%clk 0:44:35]} 49. Nxc6
{[%clk 0:17:39]} 49... Rxd3 {[%clk 0:44:44]} 50. Ne5 {[%clk 0:16:43]} 50... Rd4
{[%clk 0:43:27]} 51. Nf3 {[%clk 0:14:36]} 51... Rg4+ {[%clk 0:43:01]} 52. Kf5
{[%clk 0:15:00]} 52... Ra4 {[%clk 0:43:25]} 53. Ne5 {[%clk 0:14:26]} 53... c4
{[%clk 0:40:24]} 54. Ke4 {[%clk 0:09:41]} 54... b5 {[%clk 0:36:35]} 55. Ke3
{[%clk 0:08:04]} 55... b4 {[%clk 0:35:54]} 56. Kd4 0-1

[Variant "Standard"]
[Site "Europe Echecs"]

[Event "Championnat du monde jeunes U12"]
[Date "2024.11.18"]
[White "Lacan Rus, David"]
[Black "Petroff, Vlad"]
[WhiteElo "2274"]
[BlackElo "2079"]
[Round "4.1"]
[Result "1-0"]
[TimeControl "5400+30"]

1. d4 {[%clk 1:30:58]} 1... d5 {[%clk 1:30:49]} 2. Nf3 {[%clk 1:31:22]} 2... c5
{[%clk 1:30:54]} 3. g3 {[%clk 1:30:59]} 3... Nc6 {[%clk 1:27:12]} 4. Bg2 {[%clk
1:31:12]} 4... cxd4 {[%clk 1:26:41]} 5. Nxd4 {[%clk 1:31:33]} 5... e5 {[%clk
1:18:42]} 6. Nxc6 {[%clk 1:31:44]} 6... bxc6 {[%clk 1:19:11]} 7. c4 {[%clk
1:28:05]} 7... Be6 {[%clk 1:17:34]} 8. Qa4 {[%clk 1:25:34]} 8... Qd7 {[%clk
1:14:16]} 9. Nc3 {[%clk 1:24:39]} 9... Nf6 {[%clk 1:10:35]} 10. Bg5 {[%clk
1:23:49]} 10... Be7 {[%clk 1:04:05]} 11. Bxf6 {[%clk 1:11:43]} 11... Bxf6 {[%clk
1:02:30]} 12. cxd5 {[%clk 1:09:37]} 12... cxd5 {[%clk 1:02:22]} 13. Qxd7+ {[%clk
1:09:03]} 13... Kxd7 {[%clk 1:02:37]} 14. Bxd5 {[%clk 1:03:11]} 14... Rab8
{[%clk 0:53:18]} 15. O-O-O {[%clk 1:01:14]} 15... Ke7 {[%clk 0:50:30]} 16. e4
{[%clk 0:56:03]} 16... Rhc8 {[%clk 0:47:22]} 17. Rd3 {[%clk 0:50:55]} 17... Rb4
{[%clk 0:41:44]} 18. f3 {[%clk 0:47:40]} 18... Rcb8 {[%clk 0:36:25]} 19. b3
{[%clk 0:44:57]} 19... Rc8 {[%clk 0:32:49]} 20. Kb2 {[%clk 0:43:29]} 20... a5
{[%clk 0:31:01]} 21. Rhd1 {[%clk 0:42:22]} 21... Rd4 {[%clk 0:27:35]} 22. Nb5
{[%clk 0:38:25]} 22... Rxd3 {[%clk 0:25:31]} 23. Rxd3 {[%clk 0:38:54]} 23... h5
{[%clk 0:20:41]} 24. Bxe6 {[%clk 0:27:23]} 24... fxe6 {[%clk 0:16:58]} 25. Na3
{[%clk 0:26:55]} 25... h4 {[%clk 0:12:46]} 26. Nc4 {[%clk 0:24:17]} 26... Rc5
{[%clk 0:12:14]} 27. Ka3 {[%clk 0:20:47]} 27... Bg5 {[%clk 0:09:37]} 28. Ka4
{[%clk 0:19:13]} 28... h3 {[%clk 0:09:07]} 29. Rc3 {[%clk 0:16:15]} 29... Bd2
{[%clk 0:06:49]} 30. Rc2 {[%clk 0:16:29]} 30... Be1 {[%clk 0:04:15]} 31. Ka3
{[%clk 0:12:35]} 31... Bb4+ {[%clk 0:01:34]} 32. Kb2 {[%clk 0:12:58]} 32... Rb5
{[%clk 0:01:25]} 33. Ne3 {[%clk 0:07:01]} 33... Bc5 {[%clk 0:01:19]} 34. Ng4
{[%clk 0:07:02]} 34... Bd4+ {[%clk 0:01:07]} 35. Ka3 {[%clk 0:07:21]} 35... Bg1
{[%clk 0:01:03]} 36. Ka4 {[%clk 0:07:05]} 36... Rb8 {[%clk 0:00:45]} 37. Kxa5
{[%clk 0:06:36]} 37... Rd8 {[%clk 0:00:41]} 38. Nxe5 {[%clk 0:05:33]} 38... Rd1
{[%clk 0:00:43]} 39. Ng6+ {[%clk 0:05:42]} 39... Kf6 {[%clk 0:01:02]} 40. Nf4
{[%clk 0:06:03]} 40... g5 {[%clk 0:01:10]} 41. Nxh3 {[%clk 0:06:18]} 41... Bd4
{[%clk 0:01:22]} 42. f4 {[%clk 0:04:48]} 42... g4 {[%clk 0:01:40]} 43. Nf2
{[%clk 0:04:49]} 43... Bxf2 {[%clk 0:02:02]} 44. Rxf2 {[%clk 0:05:17]} 44... Re1
{[%clk 0:02:25]} 45. e5+ {[%clk 0:05:25]} 45... Kf5 {[%clk 0:02:51]} 46. b4
{[%clk 0:05:38]} 46... Ke4 {[%clk 0:03:16]} 47. Rb2 {[%clk 0:05:39]} 47... Kf3
{[%clk 0:03:42]} 48. b5 {[%clk 0:06:02]} 48... Rg1 {[%clk 0:04:01]} 49. b6
{[%clk 0:06:24]} 49... Rg2 {[%clk 0:04:29]} 50. Rxg2 {[%clk 0:06:44]} 50... Kxg2
{[%clk 0:04:53]} 51. b7 {[%clk 0:07:13]} 51... Kxh2 {[%clk 0:05:15]} 52. b8=Q
{[%clk 0:07:39]} 52... Kg2 {[%clk 0:05:40]} 53. f5 {[%clk 0:08:05]} 53... exf5
{[%clk 0:06:05]} 54. e6 {[%clk 0:08:33]} 54... f4 {[%clk 0:06:30]} 55. Qxf4
{[%clk 0:08:57]} 55... Kg1 {[%clk 0:06:56]} 56. e7 {[%clk 0:09:22]} 56... Kh1
{[%clk 0:07:22]} 57. e8=Q {[%clk 0:09:37]} 57... Kg2 {[%clk 0:07:49]} 58. Qe2+
{[%clk 0:10:01]} 58... Kg1 {[%clk 0:08:16]} 59. Qff1# {[%clk 0:10:27]} 1-0

[Variant "Standard"]
[Site "Europe Echecs"]

[Event "Championnat du monde jeunes U12"]
[Date "2024.11.18"]
[White "Filindash, Nikita"]
[Black "Shilon Rahav, Eliran"]
[WhiteElo "2076"]
[BlackElo "2150"]
[Round "4.2"]
[Result "1/2-1/2"]
[TimeControl "5400+30"]

1. d4 {[%clk 1:30:59]} 1... d5 {[%clk 1:30:40]} 2. c4 {[%clk 1:31:27]} 2... e6
{[%clk 1:31:01]} 3. Nc3 {[%clk 1:31:47]} 3... Nf6 {[%clk 1:31:11]} 4. cxd5
{[%clk 1:32:03]} 4... exd5 {[%clk 1:31:33]} 5. Bg5 {[%clk 1:32:25]} 5... Be6
{[%clk 1:31:55]} 6. e3 {[%clk 1:32:38]} 6... Nbd7 {[%clk 1:31:52]} 7. Nf3 {[%clk
1:32:14]} 7... c6 {[%clk 1:29:13]} 8. Bd3 {[%clk 1:31:39]} 8... h6 {[%clk
1:29:27]} 9. Bh4 {[%clk 1:31:46]} 9... g5 {[%clk 1:28:48]} 10. Bg3 {[%clk
1:31:33]} 10... Nh5 {[%clk 1:28:09]} 11. Be5 {[%clk 1:28:44]} 11... Rg8 {[%clk
1:26:16]} 12. Bh7 {[%clk 1:20:41]} 12... g4 {[%clk 1:23:06]} 13. Bxg8 {[%clk
1:12:00]} 13... gxf3 {[%clk 1:23:12]} 14. gxf3 {[%clk 1:12:22]} 14... Nxe5
{[%clk 1:10:50]} 15. dxe5 {[%clk 1:12:35]} 15... Qg5 {[%clk 1:11:13]} 16. Bh7
{[%clk 1:12:12]} 16... Qg2 {[%clk 1:11:06]} 17. Ke2 {[%clk 1:06:41]} 17... Rd8
{[%clk 0:55:24]} 18. Qd4 {[%clk 0:52:17]} 18... c5 {[%clk 0:51:44]} 19. Qa4+
{[%clk 0:49:21]} 19... Bd7 {[%clk 0:51:49]} 20. Qh4 {[%clk 0:49:16]} 20... Qg7
{[%clk 0:45:02]} 21. Bd3 {[%clk 0:46:53]} 21... c4 {[%clk 0:40:47]} 22. Bc2
{[%clk 0:43:46]} 22... Qxe5 {[%clk 0:36:29]} 23. f4 {[%clk 0:43:47]} 23... Nxf4+
{[%clk 0:36:50]} 24. Qxf4 {[%clk 0:44:00]} 24... Qxf4 {[%clk 0:37:17]} 25. exf4
{[%clk 0:44:15]} 25... d4 {[%clk 0:37:41]} 26. Be4 {[%clk 0:32:36]} 26... dxc3
{[%clk 0:37:46]} 27. bxc3 {[%clk 0:33:05]} 27... Bg7 {[%clk 0:34:58]} 28. Rac1
{[%clk 0:29:40]} 28... b5 {[%clk 0:32:16]} 29. Kf3 {[%clk 0:24:48]} 29... f5
{[%clk 0:22:54]} 30. Bd5 {[%clk 0:25:06]} 30... Kf8 {[%clk 0:21:44]} 31. Rhd1
{[%clk 0:24:32]} 31... Be8 {[%clk 0:21:09]} 32. Kg3 {[%clk 0:23:41]} 32... Rd6
{[%clk 0:20:23]} 33. a4 {[%clk 0:12:03]} 1/2-1/2

[Variant "Standard"]
[Site "Europe Echecs"]

[Event "Championnat du monde jeunes U12"]
[Date "2024.11.18"]
[White "Golubovic, Erik"]
[Black "Bulgak, Damir"]
[WhiteElo "2147"]
[BlackElo "2044"]
[Round "4.3"]
[Result "1/2-1/2"]
[TimeControl "5400+30"]

1. d4 {[%clk 1:30:55]} 1... Nf6 {[%clk 1:30:37]} 2. c4 {[%clk 1:31:10]} 2... e6
{[%clk 1:30:55]} 3. Nf3 {[%clk 1:31:16]} 3... d5 {[%clk 1:30:44]} 4. g3 {[%clk
1:30:57]} 4... Bb4+ {[%clk 1:29:54]} 5. Bd2 {[%clk 1:30:55]} 5... Be7 {[%clk
1:29:51]} 6. Bg2 {[%clk 1:30:56]} 6... O-O {[%clk 1:29:59]} 7. O-O {[%clk
1:30:53]} 7... Nbd7 {[%clk 1:29:25]} 8. Qc2 {[%clk 1:25:56]} 8... c6 {[%clk
1:28:08]} 9. b3 {[%clk 1:25:40]} 9... b6 {[%clk 1:27:35]} 10. Nc3 {[%clk
1:25:33]} 10... Ba6 {[%clk 1:27:18]} 11. e4 {[%clk 1:25:11]} 11... dxc4 {[%clk
1:27:26]} 12. Rfe1 {[%clk 1:24:45]} 12... h6 {[%clk 1:26:05]} 13. h4 {[%clk
1:19:15]} 13... e5 {[%clk 1:22:58]} 14. Ne2 {[%clk 1:16:29]} 14... cxb3 {[%clk
1:08:23]} 15. axb3 {[%clk 1:16:07]} 15... Bb7 {[%clk 1:06:53]} 16. Bc3 {[%clk
1:11:15]} 16... Qc7 {[%clk 0:58:51]} 17. Rad1 {[%clk 1:05:03]} 17... c5 {[%clk
0:44:05]} 18. dxe5 {[%clk 0:54:37]} 18... Nxe4 {[%clk 0:33:56]} 19. Bb2 {[%clk
0:49:41]} 19... c4 {[%clk 0:31:04]} 20. Ned4 {[%clk 0:44:17]} 20... c3 {[%clk
0:24:56]} 21. Ba1 {[%clk 0:38:28]} 21... Ndc5 {[%clk 0:24:30]} 22. Nb5 {[%clk
0:28:21]} 22... Qc8 {[%clk 0:22:02]} 23. b4 {[%clk 0:22:14]} 23... Nd2 {[%clk
0:21:36]} 24. Qxc3 {[%clk 0:21:07]} 24... Nxf3+ {[%clk 0:21:41]} 25. Bxf3 {[%clk
0:21:35]} 25... Bxf3 {[%clk 0:21:44]} 26. Qxf3 {[%clk 0:22:00]} 26... Ne6 {[%clk
0:22:08]} 27. Qe4 {[%clk 0:11:48]} 1/2-1/2

[Variant "Standard"]
[Site "Europe Echecs"]

[Event "Championnat du monde jeunes U12"]
[Date "2024.11.18"]
[White "Baturin-Vinogradov, Miroslav"]
[Black "Abdsattar, Alisher"]
[WhiteElo "2048"]
[BlackElo "2082"]
[Round "4.4"]
[Result "0-1"]
[TimeControl "5400+30"]

1. d4 {[%clk 1:30:44]} 1... Nf6 {[%clk 1:30:44]} 2. c4 {[%clk 1:30:56]} 2... g6
{[%clk 1:30:56]} 3. g3 {[%clk 1:30:42]} 3... c5 {[%clk 1:31:21]} 4. dxc5 {[%clk
1:30:16]} 4... Qa5+ {[%clk 1:30:42]} 5. Nc3 {[%clk 1:29:38]} 5... Bg7 {[%clk
1:30:25]} 6. Bd2 {[%clk 1:28:33]} 6... Qxc5 {[%clk 1:28:45]} 7. Bg2 {[%clk
1:27:36]} 7... O-O {[%clk 1:27:50]} 8. Rc1 {[%clk 1:26:51]} 8... Nc6 {[%clk
1:23:30]} 9. b3 {[%clk 1:20:20]} 9... Rd8 {[%clk 1:22:28]} 10. e4 {[%clk
1:12:23]} 10... Nb4 {[%clk 1:21:37]} 11. Qe2 {[%clk 1:09:26]} 11... Qd6 {[%clk
1:20:35]} 12. Bf1 {[%clk 1:05:28]} 12... Nc6 {[%clk 1:02:53]} 13. Nf3 {[%clk
0:52:24]} 13... Qc5 {[%clk 0:47:59]} 14. Bg2 {[%clk 0:43:10]} 14... d6 {[%clk
0:46:42]} 15. h3 {[%clk 0:40:10]} 15... Bd7 {[%clk 0:34:14]} 16. Be3 {[%clk
0:31:26]} 16... Qa5 {[%clk 0:31:11]} 17. Bd2 {[%clk 0:23:24]} 17... a6 {[%clk
0:20:43]} 18. a4 {[%clk 0:21:38]} 18... Qb6 {[%clk 0:16:10]} 19. Rb1 {[%clk
0:19:22]} 19... Rdb8 {[%clk 0:14:34]} 20. O-O {[%clk 0:18:12]} 20... Qd8 {[%clk
0:14:17]} 21. Rfd1 {[%clk 0:17:29]} 21... Ne8 {[%clk 0:13:35]} 22. Qe1 {[%clk
0:10:05]} 22... Nc7 {[%clk 0:12:27]} 23. Nd5 {[%clk 0:06:49]} 23... b5 {[%clk
0:11:06]} 24. axb5 {[%clk 0:05:16]} 24... axb5 {[%clk 0:11:28]} 25. Bc3 {[%clk
0:05:13]} 25... bxc4 {[%clk 0:08:55]} 26. Bxg7 {[%clk 0:05:24]} 26... Kxg7
{[%clk 0:09:22]} 27. Qc3+ {[%clk 0:05:16]} 27... f6 {[%clk 0:09:11]} 28. Qxc4
{[%clk 0:04:40]} 28... Nb5 {[%clk 0:06:32]} 29. Ra1 {[%clk 0:02:46]} 29... Ne5
{[%clk 0:05:25]} 30. Nxe5 {[%clk 0:02:53]} 30... fxe5 {[%clk 0:05:43]} 31. Rxa8
{[%clk 0:01:52]} 31... Rxa8 {[%clk 0:06:09]} 32. Ne3 {[%clk 0:01:14]} 32... Rc8
{[%clk 0:06:23]} 33. Qb4 {[%clk 0:01:01]} 33... Nd4 {[%clk 0:05:39]} 34. Rxd4
{[%clk 0:01:00]} 34... exd4 {[%clk 0:06:06]} 35. Qxd4+ {[%clk 0:01:25]} 35...
Kf7 {[%clk 0:04:56]} 36. e5 {[%clk 0:01:22]} 36... Be6 {[%clk 0:04:21]} 37. Qf4+
{[%clk 0:00:50]} 37... Kg7 {[%clk 0:04:09]} 38. Qd4 {[%clk 0:00:56]} 38... dxe5
{[%clk 0:03:23]} 39. Qxe5+ {[%clk 0:01:21]} 39... Kf7 {[%clk 0:03:52]} 40. Qf4+
{[%clk 0:01:05]} 40... Kg8 {[%clk 0:04:16]} 41. b4 {[%clk 0:01:14]} 41... Qd6
{[%clk 0:04:32]} 42. Qe4 {[%clk 0:00:44]} 42... Rb8 {[%clk 0:04:32]} 43. Qxe6+
{[%clk 0:00:34]} 43... Qxe6 {[%clk 0:04:58]} 44. Bd5 {[%clk 0:00:58]} 44... Kf7
{[%clk 0:05:16]} 45. Bxe6+ {[%clk 0:01:10]} 45... Kxe6 {[%clk 0:05:42]} 46. Nc2
{[%clk 0:01:07]} 46... Rc8 {[%clk 0:05:26]} 47. Nd4+ {[%clk 0:01:14]} 47... Kd5
{[%clk 0:05:51]} 48. Nf3 {[%clk 0:01:12]} 48... Rb8 {[%clk 0:05:48]} 49. Ne1
{[%clk 0:01:02]} 49... Rxb4 {[%clk 0:06:11]} 50. Nc2 {[%clk 0:01:15]} 50... Rb2
{[%clk 0:06:31]} 51. Ne3+ {[%clk 0:01:39]} 51... Ke4 {[%clk 0:06:57]} 52. Kg2
{[%clk 0:01:45]} 52... Kd3 {[%clk 0:06:52]} 53. Nd5 {[%clk 0:01:23]} 53... e5
{[%clk 0:07:00]} 54. Nf6 {[%clk 0:00:45]} 54... e4 {[%clk 0:05:44]} 55. Kf1
{[%clk 0:00:44]} 55... e3 {[%clk 0:04:16]} 56. fxe3 {[%clk 0:01:04]} 56... h5
{[%clk 0:03:20]} 57. Nd5 {[%clk 0:01:04]} 57... Ke4 {[%clk 0:03:38]} 58. Ne7
{[%clk 0:00:33]} 58... Kf3 {[%clk 0:04:02]} 59. Ke1 {[%clk 0:00:40]} 59... Kxe3
{[%clk 0:04:21]} 60. Kd1 {[%clk 0:00:36]} 60... Rd2+ {[%clk 0:04:38]} 61. Ke1
{[%clk 0:00:47]} 61... Rd6 {[%clk 0:04:49]} 62. g4 {[%clk 0:00:50]} 62... Kf3
{[%clk 0:05:00]} 63. Nc8 {[%clk 0:00:33]} 63... Re6+ {[%clk 0:05:27]} 0-1

[Variant "Standard"]
[Site "Europe Echecs"]